bitfinex/quotes_ETHUSD_20250726
["timestamp","ask_amount","ask_price","bid_price","bid_amount"]
[1753527465093,39.07444699,3766.9,3766.8,1e-08]
[1753527465400,40.01145859,3766.9,3766.8,1e-08]
[1753527465968,40.76235859,3766.9,3766.8,1e-08]
[1753527467712,44.52589256,3766.9,3766.8,1e-08]
[1753527467862,44.51688096,3766.9,3766.8,1e-08]
[1753527468065,44.52589416,3766.9,3766.8,1e-08]
[1753527473506,44.52489416,3766.9,3766.8,1e-08]
[1753527474104,44.67369079,3766.9,3766.8,1e-08]
[1753527474404,44.67269079,3766.9,3766.8,1e-08]
[1753527474618,14.67269079,3766.9,3766.8,1e-08]
[1753527474808,44.67269079,3766.9,3766.8,1e-08]
[1753527474995,44.67271465,3766.9,3766.8,1e-08]
[1753527479302,3.20505522,3766.4,3766.3,1e-08]
[1753527479502,3.20505522,3766.4,3766.2,0.001]
[1753527479503,36.20512572,3766.3,3766.2,1e-08]
[1753527479705,36.45306991,3766.3,3766.2,1e-08]
[1753527479908,37.38456991,3766.3,3766.2,1e-08]
[1753527480411,37.39358314,3766.3,3766.2,1e-08]
[1753527480578,36.95058314,3766.3,3766.2,1e-08]
[1753527480973,36.46208314,3766.3,3766.2,1e-08]
[1753527481711,39.43658314,3766.3,3766.2,1e-08]
[1753527482121,36.95058314,3766.3,3766.2,1e-08]
[1753527482315,39.43658314,3766.3,3766.2,1e-08]
[1753527482612,39.87958314,3766.3,3766.2,1e-08]
[1753527482824,39.43658314,3766.3,3766.2,1e-08]
[1753527483119,39.87958314,3766.3,3766.2,1e-08]
[1753527483442,40.02870488,3766.3,3766.2,1e-08]
[1753527484117,39.87958314,3766.3,3766.2,1e-08]
[1753527484315,40.02877651,3766.3,3766.2,1e-08]
[1753527485705,40.02945631,3766.3,3766.2,1e-08]
[1753527486607,39.87926294,3766.3,3766.2,1e-08]
[1753527487136,40.02843424,3766.3,3766.2,1e-08]
[1753527490013,37.54343424,3766.3,3766.2,1e-08]
[1753527490199,40.02743424,3766.3,3766.2,1e-08]
[1753527493334,10.02743424,3766.3,3766.2,1e-08]
[1753527493535,40.02743424,3766.3,3766.2,1e-08]
[1753527495246,37.54343424,3766.3,3766.2,1e-08]
[1753527495451,40.02643424,3766.3,3766.2,1e-08]
[1753527495851,40.82663424,3766.3,3766.2,1e-08]
[1753527497011,37.41213424,3766.3,3766.2,1e-08]
[1753527497351,39.09593424,3766.3,3766.2,1e-08]
[1753527497714,36.61393424,3766.3,3766.2,1e-08]
[1753527497914,35.94676294,3766.3,3766.2,1e-08]
[1753527498149,35.39676294,3766.3,3766.2,1e-08]
[1753527498353,38.39676294,3766.3,3766.2,1e-08]
[1753527498530,38.94676294,3766.3,3766.2,1e-08]
[1753527498735,0.25963722,3766.3,3766.2,0.97110001]
[1753527498918,2.49301323,3766.3,3766.2,0.97110001]
[1753527500025,0.01101323,3766.3,3766.2,0.97110001]
[1753527500252,2.49301323,3766.3,3766.2,0.97110001]
[1753527501125,5.14813895,3766.3,3766.2,0.79140001]
[1753527502180,5.13912572,3766.3,3766.2,0.79140001]
[1753527502456,5.14814089,3766.3,3766.2,0.79140001]
[1753527503544,5.14814089,3766.3,3766.2,1e-08]
[1753527503734,2.66614089,3766.3,3766.2,1e-08]
[1753527504057,5.14714089,3766.3,3766.2,1e-08]
[1753527504254,2.66614089,3766.3,3766.2,1e-08]
[1753527504447,5.39556243,3766.3,3766.2,0.17970001]
[1753527504752,0.01101517,3766.3,3766.2,0.17970001]
[1753527504956,2.49101517,3766.3,3766.2,0.94030001]
[1753527506058,0.01101517,3766.3,3766.2,0.94030001]
[1753527506229,2.49101517,3766.3,3766.2,0.94030001]
[1753527507957,5.49101517,3766.3,3766.2,0.94030001]
[1753527508163,3.01101517,3766.3,3766.2,0.94030001]
[1753527508363,8.14614089,3766.3,3766.2,0.94030001]
[1753527508760,8.27894089,3766.3,3766.2,0.94030001]
[1753527509264,8.27794089,3766.3,3766.2,0.76060001]
[1753527511929,5.79894089,3766.3,3766.2,0.76060001]
[1753527512135,8.27794089,3766.3,3766.2,0.76060001]
[1753527512335,39.20644089,3766.3,3766.2,1e-08]
[1753527512760,39.45468019,3766.3,3766.2,1e-08]
[1753527513569,9.20644089,3766.3,3766.2,1e-08]
[1753527513773,10.54274089,3766.3,3766.2,1e-08]
[1753527513973,36.20519621,3766.2,3766.1,1e-08]
[1753527514275,6.20568981,3765.5,3765.4,0.001]
[1753527514488,8.81648981,3765.5,3765.4,0.001]
[1753527514839,9.74498981,3765.5,3765.4,0.001]
[1753527516779,39.99324184,3765.5,3765.4,0.001]
[1753527517081,39.9932403,3765.5,3765.4,0.001]
[1753527517380,39.74498981,3765.5,3765.4,0.001]
[1753527517673,37.26698981,3765.5,3765.4,0.001]
[1753527517855,39.75400364,3765.5,3765.4,0.001]
[1753527519476,3.14181383,3765.5,3765.4,0.001]
[1753527519702,0.1328,3765.5,3765.4,1.0037]
[1753527519847,0.14181397,3765.5,3765.4,1.0037]
[1753527520042,2.6108,3765.5,3765.4,1.0037]
[1753527520244,35.9693,3765.5,3765.4,0.001]
[1753527520474,39.86933677,3765.5,3765.4,0.001]
[1753527520668,39.8603228,3765.5,3765.4,1e-08]
[1753527520873,39.86933677,3765.5,3765.4,1e-08]
[1753527522313,40.64883677,3765.5,3765.4,1e-08]
[1753527522471,40.6398228,3765.5,3765.4,1e-08]
[1753527522667,40.64883677,3765.5,3765.4,1e-08]
[1753527522872,40.6398228,3765.5,3765.4,1e-08]
[1753527523108,40.64883677,3765.5,3765.4,1e-08]
[1753527523403,40.64783677,3765.5,3765.4,1e-08]
[1753527523792,40.85022155,3765.5,3765.4,1e-08]
[1753527523976,40.85022882,3765.5,3765.4,1e-08]
[1753527524573,38.19453901,3765.5,3765.4,1e-08]
[1753527525414,35.51515423,3765.5,3765.4,1e-08]
[1753527525872,37.99215423,3765.5,3765.4,1e-08]
[1753527526509,35.73415423,3765.5,3765.4,1e-08]
[1753527526805,37.21265423,3765.5,3765.4,1e-08]
[1753527527306,38.03795423,3765.5,3765.4,1e-08]
[1753527528979,35.56095423,3765.5,3765.4,1e-08]
[1753527529181,36.28315423,3765.5,3765.4,1e-08]
[1753527529481,36.27414026,3765.5,3765.4,1e-08]
[1753527529881,36.9756,3765.5,3765.4,1e-08]
[1753527530395,37.35627882,3765.5,3765.4,1e-08]
[1753527530705,37.36529586,3765.5,3765.4,1e-08]
[1753527536519,34.88929586,3765.5,3765.4,1e-08]
[1753527536684,7.36429586,3765.5,3765.4,1e-08]
[1753527536886,37.36429586,3765.5,3765.4,1e-08]
[1753527538412,3.93969586,3765.5,3765.4,1e-08]
[1753527538616,6.41469586,3765.5,3765.4,1e-08]
[1753527538916,6.40567882,3765.5,3765.4,1e-08]
[1753527539112,6.41469559,3765.5,3765.4,1e-08]
[1753527539315,6.16681677,3765.5,3765.4,1e-08]
[1753527539630,3.14181677,3765.5,3765.4,1e-08]
[1753527539918,5.61681677,3765.5,3765.4,1e-08]
[1753527540295,5.86506044,3765.5,3765.4,1e-08]
[1753527540616,3.14381677,3765.5,3765.4,1e-08]
[1753527540930,6.16881677,3765.5,3765.4,1e-08]
[1753527541216,38.01897878,3765.5,3765.4,1e-08]
[1753527544425,37.23387878,3765.5,3765.4,1e-08]
[1753527547140,7.23387878,3765.5,3765.4,1e-08]
[1753527547503,37.23387878,3765.5,3765.4,1e-08]
[1753527548517,37.22486201,3765.5,3765.4,1e-08]
[1753527548810,37.23387857,3765.5,3765.4,1e-08]
[1753527549003,37.38317518,3765.5,3765.4,1e-08]
[1753527549208,38.17387518,3765.5,3765.4,1e-08]
[1753527551149,38.30667518,3765.5,3765.4,1e-08]
[1753527552406,38.30674838,3765.5,3765.4,1e-08]
[1753527554761,38.05848637,3765.5,3765.4,1e-08]
[1753527554944,38.30744942,3765.5,3765.4,1e-08]
[1753527562303,35.83244942,3765.5,3765.4,1e-08]
[1753527562572,38.30444942,3765.5,3765.4,1e-08]
[1753527562777,38.29543286,3765.5,3765.4,1e-08]
[1753527563280,38.3044504,3765.5,3765.4,1e-08]
[1753527563575,0.55,3765.0,3764.6,0.10570874]
[1753527563763,30.1328,3764.7,3764.6,0.10570874]
[1753527563965,37.33076305,3764.7,3764.6,0.10570874]
[1753527564169,38.2546351,3764.7,3764.6,0.10570874]
[1753527564569,38.26365264,3764.7,3764.6,0.10570874]
[1753527567105,38.26338179,3764.7,3764.6,0.10570874]
[1753527567837,38.25436425,3764.7,3764.6,0.10570874]
[1753527568004,38.26338306,3764.7,3764.6,0.10570874]
[1753527569808,38.26320408,3764.7,3764.6,0.10570874]
[1753527570138,45.32320408,3764.7,3764.6,0.10570874]
[1753527570535,49.08673805,3764.7,3764.6,0.10570874]
[1753527572249,49.08573805,3764.7,3764.6,0.10570874]
[1753527574639,19.08573805,3764.7,3764.6,0.10570874]
[1753527574849,49.08573805,3764.7,3764.6,0.10570874]
[1753527575419,48.83694789,3764.7,3764.6,0.10570874]
[1753527575618,49.08512897,3764.7,3764.6,0.10570874]
[1753527575839,49.08494251,3764.7,3764.6,0.10570874]
[1753527576347,19.08494251,3764.7,3764.6,0.10570874]
[1753527576549,49.08494251,3764.7,3764.6,0.10570874]
[1753527580051,51.87794251,3764.7,3764.6,0.10570874]
[1753527581142,53.47194251,3764.7,3764.6,0.10570874]
[1753527581324,0.55,3764.4,3763.8,0.001]
[1753527581665,35.01120936,3763.9,3763.8,1e-08]
[1753527581825,37.72839044,3763.9,3763.8,1e-08]
[1753527582222,8.65639044,3763.9,3763.8,1e-08]
[1753527582424,38.65639044,3763.9,3763.8,1e-08]
[1753527582634,38.66540925,3763.9,3763.8,1e-08]
[1753527583059,38.20650925,3763.9,3763.8,1e-08]
[1753527583423,38.65639044,3763.9,3763.8,1e-08]
[1753527583633,38.66541026,3763.9,3763.8,1e-08]
[1753527584147,38.66534321,3763.9,3763.8,1e-08]
[1753527584735,38.8142086,3763.9,3763.8,1e-08]
[1753527586764,37.8862086,3763.9,3763.8,1e-08]
[1753527586966,37.54002681,3763.9,3763.8,1e-08]
[1753527587167,37.3821416,3763.9,3763.8,0.17970001]
[1753527587334,37.9321416,3763.9,3763.8,0.17970001]
[1753527587534,37.94116324,3763.9,3763.8,0.17970001]
[1753527587765,37.73734813,3763.9,3763.8,0.17970001]
[1753527588061,37.73734813,3763.9,3763.8,1e-08]
[1753527589147,34.71834813,3763.9,3763.8,0.17970001]
[1753527589342,37.18734813,3763.9,3763.8,0.17970001]
[1753527589548,7.18734813,3763.9,3763.8,0.17970001]
[1753527589752,7.73734813,3763.9,3763.8,0.17970001]
[1753527590248,5.26834813,3763.9,3763.8,0.17970001]
[1753527590553,7.73734813,3763.9,3763.8,0.17970001]
[1753527590755,7.73634813,3763.9,3763.8,0.17970001]
[1753527591069,7.18634813,3763.9,3763.8,0.98000001]
[1753527593862,5.85793877,3763.9,3763.8,0.98000001]
[1753527594165,3.38993877,3763.9,3763.8,0.98000001]
[1753527594364,3.1328,3763.9,3763.8,0.98000001]
[1753527594568,5.6008,3763.9,3763.8,0.98000001]
[1753527594771,0.14182126,3763.9,3763.8,0.98000001]
[1753527594972,2.47702126,3763.9,3763.8,0.98000001]
[1753527598145,2.47602126,3763.9,3763.8,0.98000001]
[1753527600678,0.00902126,3763.9,3763.8,0.98000001]
[1753527600850,0.00902126,3763.9,3763.8,1.0065689]
[1753527601050,0.00902126,3763.9,3763.8,0.98000001]
[1753527601485,0.00902126,3763.9,3763.8,3.63688932]
[1753527601888,2.466,3765.1,3764.5,2.65638699]
[1753527602061,2.466,3765.1,3764.6,0.8321]
[1753527602264,2.466,3765.1,3764.7,0.1797]
[1753527602467,1.06242529,3765.0,3764.5,0.8321]
[1753527602684,1.06242529,3765.0,3764.5,1.0118]
[1753527602868,3.52841037,3765.1,3764.5,1.0118]
[1753527603066,1.06243084,3765.0,3764.5,0.8321]
[1753527603282,1.52149534,3765.1,3764.5,0.8321]
[1753527603483,0.4591,3765.1,3764.5,1.0118]
[1753527604286,0.4399,3765.2,3764.5,1.0118]
[1753527604595,0.00901855,3765.0,3764.7,0.7736]
[1753527604965,0.00901855,3765.0,3764.9,0.7736]
[1753527607099,0.90801855,3765.0,3764.9,0.7736]
[1753527607298,2.47401855,3765.0,3764.9,0.7736]
[1753527607594,3.53643554,3765.0,3764.9,0.7736]
[1753527608162,2.47401855,3765.0,3764.9,0.7736]
[1753527608801,2.47401855,3765.0,3764.4,3.76353397]
[1753527608802,3.37301855,3765.0,3764.1,0.8085]
[1753527609106,0.00901855,3765.0,3764.5,0.8085]
[1753527609463,3.364,3764.9,3763.9,0.8085]
[1753527609664,0.899,3764.8,3763.9,0.8085]
[1753527610011,1.06266764,3764.2,3763.9,0.8085]
[1753527610214,1.06258899,3764.4,3763.9,0.8085]
[1753527610215,1.06268642,3764.1,3763.9,0.8085]
[1753527610505,1.06269925,3764.0,3763.9,0.8085]
[1753527610675,1.96169925,3764.0,3763.9,0.8085]
[1753527611207,1.96169925,3764.0,3763.8,1e-08]
[1753527611406,0.899,3763.9,3763.8,1e-08]
[1753527611767,1.0318,3763.9,3763.8,1e-08]
[1753527611968,0.1328,3763.9,3763.8,1e-08]
[1753527612169,1.0318,3763.9,3763.8,1e-08]
[1753527613108,3.4958,3763.9,3763.8,1e-08]
[1753527613804,37.55852749,3763.9,3763.8,1e-08]
[1753527614704,7.56754333,3763.9,3763.8,1e-08]
[1753527617586,8.11754333,3763.9,3763.8,1e-08]
[1753527620394,5.10354333,3763.9,3763.8,1e-08]
[1753527620598,7.56754333,3763.9,3763.8,1e-08]
[1753527621402,8.90824333,3763.9,3763.8,1e-08]
[1753527623189,38.90824333,3763.9,3763.8,1e-08]
[1753527623716,39.17394333,3763.9,3763.8,1e-08]
[1753527623894,46.23394333,3763.9,3763.8,1e-08]
[1753527624299,46.481863,3763.9,3763.8,1e-08]
[1753527624481,46.47284716,3763.9,3763.8,1e-08]
[1753527624884,46.48186703,3763.9,3763.8,1e-08]
[1753527625117,44.01786703,3763.9,3763.8,1e-08]
[1753527625523,46.23394736,3763.9,3763.8,1e-08]
[1753527626986,46.48165196,3763.9,3763.8,1e-08]
[1753527627586,46.48155706,3763.9,3763.8,1e-08]
[1753527629133,46.48355706,3763.9,3763.8,1e-08]
[1753527629429,49.27655706,3763.9,3763.8,1e-08]
[1753527630487,49.2763774,3763.9,3763.8,1e-08]
[1753527631027,49.42482677,3763.9,3763.8,1e-08]
[1753527631336,49.2763774,3763.9,3763.8,1e-08]
[1753527631932,49.42479776,3763.9,3763.8,1e-08]
[1753527632500,49.2763774,3763.9,3763.8,1e-08]
[1753527633031,49.42477685,3763.9,3763.8,1e-08]
[1753527634209,46.96077685,3763.9,3763.8,1e-08]
[1753527634407,49.2753774,3763.9,3763.8,1e-08]
[1753527634907,46.4823774,3763.9,3763.8,1e-08]
[1753527635322,45.9323774,3763.9,3763.8,1e-08]
[1753527635537,46.4823774,3763.9,3763.8,1e-08]
[1753527636043,44.0193774,3763.9,3763.8,1e-08]
[1753527636241,1.20654736,3763.9,3763.8,1e-08]
[1753527636442,6.66954736,3763.9,3763.8,1e-08]
[1753527636739,7.21954736,3763.9,3763.8,1e-08]
[1753527637130,37.21954736,3763.9,3763.8,1e-08]
[1753527637452,39.14793009,3763.9,3763.8,1e-08]
[1753527637632,9.14793009,3763.9,3763.8,1e-08]
[1753527637836,39.14793009,3763.9,3763.8,1e-08]
[1753527638034,38.90024736,3763.9,3763.8,1e-08]
[1753527638210,39.14807303,3763.9,3763.8,1e-08]
[1753527640514,39.29699296,3763.9,3763.8,1e-08]
[1753527643711,39.56269296,3763.9,3763.8,1e-08]
[1753527644314,49.41641376,3763.9,3763.8,1e-08]
[1753527644510,49.41641376,3763.9,3762.4,0.7587]
[1753527644511,1.06312292,3762.5,3762.4,0.7587]
[1753527644751,8.2526073,3762.5,3762.4,0.7587]
[1753527644914,8.26162717,3762.5,3762.4,0.7587]
[1753527645111,8.26162717,3762.5,3762.4,0.9384]
[1753527645315,3.0,3762.3,3761.9,0.7587]
[1753527645514,2.65882307,3761.1,3760.8,0.1328]
[1753527645741,2.462,3761.3,3760.8,0.1328]
[1753527645944,0.00902147,3761.0,3760.8,0.1328]
[1753527646153,0.00902147,3761.0,3760.9,0.9384]
[1753527647754,0.00902147,3761.0,3760.9,4.70193397]
[1753527647925,0.00902147,3761.0,3760.9,4.72852335]
[1753527648443,0.00902147,3761.0,3760.9,4.70193397]
[1753527649451,2.66788879,3761.0,3760.9,4.70193397]
[1753527649655,0.00902147,3761.0,3760.9,4.70193397]
[1753527649854,2.66788879,3761.0,3760.9,4.70193397]
[1753527650063,2.66788879,3761.0,3760.9,0.9384]
[1753527651056,2.66788879,3761.0,3760.9,0.9394]
[1753527656126,2.66788879,3761.0,3760.9,0.7597]
[1753527656330,2.80068879,3761.0,3760.9,0.7597]
[1753527658238,2.79166732,3761.0,3760.9,0.7597]
[1753527658542,3.27839201,3761.0,3760.9,0.7597]
[1753527658845,3.75029201,3761.0,3760.9,0.7597]
[1753527659570,3.75029201,3761.0,3760.9,0.001]
[1753527659756,6.75029201,3761.0,3760.9,0.001]
[1753527660164,8.10289201,3761.0,3760.9,1e-08]
[1753527660471,8.26169201,3761.0,3760.9,1e-08]
[1753527660968,9.21129201,3761.0,3760.9,1e-08]
[1753527663764,6.27259201,3761.0,3760.9,1e-08]
[1753527663966,9.21129201,3761.0,3760.9,1e-08]
[1753527664165,6.75029201,3761.0,3760.9,1e-08]
[1753527664366,5.80069201,3761.0,3760.9,1e-08]
[1753527664675,8.26169201,3761.0,3760.9,1e-08]
[1753527665179,0.14182469,3761.0,3760.9,1e-08]
[1753527665337,0.14182469,3761.0,3760.9,0.17970001]
[1753527665338,2.47002469,3761.0,3760.9,0.17970001]
[1753527665541,5.12889201,3761.0,3760.9,0.17970001]
[1753527665769,5.12889201,3761.0,3760.9,1e-08]
[1753527665979,0.00902469,3761.0,3760.9,1e-08]
[1753527666285,2.461,3761.0,3760.9,0.17970001]
[1753527667250,2.461,3761.0,3760.9,1e-08]
[1753527667952,5.11986732,3761.0,3760.9,1e-08]
[1753527668152,6.06946732,3761.0,3760.9,1e-08]
[1753527669067,6.07849384,3761.0,3760.9,1e-08]
[1753527669368,0.1328,3761.1,3761.0,0.7874]
[1753527669575,2.5938,3761.1,3761.0,0.7874]
[1753527669769,2.461,3761.3,3761.0,0.9671]
[1753527669968,2.65841567,3761.7,3761.0,0.9671]
[1753527669969,2.461,3761.2,3761.0,0.7874]
[1753527670171,2.461,3761.2,3761.1,0.1797]
[1753527670374,2.461,3761.2,3761.1,0.3125]
[1753527671297,2.461,3761.2,3761.1,0.1328]
[1753527672193,0.1328,3761.7,3761.2,3.44611899]
[1753527672393,3.0,3762.3,3760.9,2.65893438]
[1753527672394,0.8305,3763.0,3761.4,3.4459636]
[1753527672567,2.84177445,3762.3,3761.9,0.7874]
[1753527672775,2.65816055,3762.0,3761.9,0.7874]
[1753527672992,3.4106,3762.0,3761.9,0.7874]
[1753527673701,6.06876055,3762.0,3761.9,0.7874]
[1753527673897,2.65850353,3761.6,3761.3,0.8069]
[1753527674201,2.65850353,3761.6,3761.3,0.9397]
[1753527674202,5.11950353,3761.6,3761.3,0.9397]
[1753527674406,2.461,3761.6,3761.3,0.9397]
[1753527674905,2.461,3761.6,3761.3,4.88293397]
[1753527676101,2.461,3761.6,3761.3,4.70323397]
[1753527676669,2.461,3761.6,3761.3,4.88293397]
[1753527677807,2.65800833,3762.3,3761.4,2.65851985]
[1753527677979,2.5928,3762.2,3761.6,0.7603]
[1753527678306,2.46,3762.1,3761.9,0.7603]
[1753527678473,2.46,3762.1,3762.0,0.1328]
[1753527680094,6.48887999,3762.4,3762.0,0.1328]
[1753527680300,2.46,3762.3,3762.0,0.1328]
[1753527680683,0.9275,3762.2,3762.0,0.1328]
[1753527680887,0.9275,3762.2,3761.9,0.7603]
[1753527680888,3.58552324,3762.2,3761.9,0.7603]
[1753527681090,0.9275,3762.1,3761.9,0.7603]
[1753527681299,2.46,3762.0,3761.9,0.7603]
[1753527682212,3.831,3762.4,3761.9,0.7603]
[1753527682521,2.46,3762.3,3761.9,0.7603]
[1753527682806,2.46,3762.3,3762.0,0.1328]
[1753527685007,2.459,3762.2,3762.0,0.1328]
[1753527685714,2.459,3762.2,3762.1,0.7978]
[1753527686585,2.46802224,3762.2,3762.1,0.7978]
[1753527687114,0.00902224,3762.2,3762.1,7.39912386]
[1753527688015,0.00902224,3762.2,3762.1,7.21942386]
[1753527688323,0.00902224,3762.2,3762.1,9.85812386]
[1753527689896,0.002,3762.9,3762.8,3.4266954]
[1753527690103,0.002,3762.9,3762.8,7.19022937]
[1753527690296,0.002,3762.9,3762.8,7.32302937]
[1753527690697,0.002,3762.9,3762.8,7.50272937]
[1753527691288,0.002,3762.9,3762.8,9.96172937]
[1753527692422,0.002,3762.9,3762.8,7.32302937]
[1753527692799,0.002,3762.9,3762.8,9.78102937]
[1753527693220,0.01102198,3762.9,3762.8,9.78102937]
[1753527693528,0.01102198,3762.9,3762.8,0.9019]
[1753527693835,0.93852198,3762.9,3762.5,0.8038]
[1753527693991,0.9275,3762.8,3762.7,0.1328]
[1753527695720,0.93652198,3762.8,3762.7,0.1328]
[1753527695922,3.59411738,3762.8,3762.7,0.1328]
[1753527696122,1.06932198,3762.8,3762.2,0.1328]
[1753527696322,2.65786663,3762.5,3762.2,0.1328]
[1753527696521,0.9275,3762.4,3762.2,0.1328]
[1753527696825,3.58538263,3762.4,3762.2,0.1328]
[1753527697026,3.59447057,3762.3,3761.7,0.8038]
[1753527697192,0.9275,3762.2,3762.0,0.1328]
[1753527697397,0.9275,3762.2,3761.6,2.458]
[1753527697398,2.65818755,3762.0,3761.6,2.458]
[1753527697597,2.65818755,3762.0,3761.6,2.5908]
[1753527697808,0.9275,3761.9,3761.6,2.5908]
[1753527698191,0.4343,3761.8,3761.6,0.1328]
[1753527698397,0.9275,3761.8,3761.6,0.1328]
[1753527698621,0.00902198,3762.0,3761.6,0.1328]
[1753527698822,0.9275,3761.7,3761.6,0.1328]
[1753527699995,0.93652073,3761.7,3761.6,0.1328]
[1753527700196,0.00902073,3761.7,3761.6,0.1328]
[1753527702334,0.00902073,3761.7,3761.6,3.77854321]
[1753527702635,0.4932,3762.5,3762.0,2.65813745]
[1753527702802,0.4932,3762.0,3761.9,0.7835]
[1753527703134,0.9275,3762.0,3761.7,2.458]
[1753527703432,0.4932,3762.0,3761.9,0.1328]
[1753527703614,0.00902073,3762.0,3761.9,0.1328]
[1753527703938,0.44332073,3762.0,3761.9,0.1328]
[1753527704138,0.93652073,3762.0,3761.9,0.1328]
[1753527705840,0.00902073,3762.0,3761.9,7.33806518]
[1753527706804,0.00902073,3762.0,3761.9,7.51776518]
[1753527707219,0.00902073,3762.0,3761.9,7.33806518]
[1753527707620,0.00902073,3762.0,3761.9,9.79606518]
[1753527710464,0.002,3762.9,3762.0,2.65816055]
[1753527710761,0.002,3762.9,3762.7,2.7904033]
[1753527711056,0.002,3762.9,3762.8,2.6575954]
[1753527711427,0.8937,3762.9,3762.7,0.1328]
[1753527711633,0.8917,3762.8,3762.7,0.1294495]
[1753527711828,0.8917,3762.8,3762.7,2.78711553]
[1753527712023,0.002,3762.9,3762.8,2.6575954]
[1753527713123,0.8937,3762.9,3762.7,0.1294495]
[1753527713529,0.4634,3762.8,3762.7,2.78711553]
[1753527713728,0.002,3762.9,3762.8,2.6575954]
[1753527714614,0.002,3762.9,3762.7,2.78710895]
[1753527714821,0.002,3762.9,3762.8,2.6575954]
[1753527715059,0.4303,3762.9,3762.8,2.6575954]
[1753527715654,0.01102047,3762.9,3762.8,2.6575954]
[1753527716943,0.47442047,3762.9,3762.8,2.6575954]
[1753527717559,0.90272047,3762.9,3762.7,2.78710282]
[1753527717758,0.90272047,3762.9,3762.7,0.1294495]
[1753527717930,0.8917,3762.8,3762.7,2.78711014]
[1753527718936,0.8917,3762.8,3762.7,0.1294495]
[1753527720054,0.8917,3762.8,3762.5,0.1328]
[1753527720228,0.79722047,3762.9,3762.5,0.1328]
[1753527720427,0.8917,3762.7,3762.5,0.1328]
[1753527720944,0.8917,3762.6,3762.5,0.1328]
[1753527723247,0.90072047,3762.6,3762.5,0.1328]
[1753527728237,0.00902047,3762.6,3762.5,2.7906073]
[1753527730086,0.00902047,3762.6,3762.5,3.5565073]
[1753527732258,0.90072047,3762.6,3762.5,2.7906073]
[1753527732682,0.90072047,3762.6,3762.5,0.1328]
[1753527733054,0.90072047,3762.6,3762.5,2.7906073]
[1753527734953,0.47242047,3762.6,3762.5,2.7906073]
[1753527735158,0.00902047,3762.6,3762.5,2.7906073]
[1753527736245,0.00902047,3762.6,3762.5,3.5998073]
[1753527738473,0.00902047,3762.6,3762.5,6.7795073]
[1753527738846,0.00902047,3762.6,3762.5,9.2355073]
[1753527739048,0.00902047,3762.6,3762.5,9.2365073]
[1753527741001,0.002,3762.8,3762.7,2.65766603]
[1753527741161,0.002,3762.8,3762.7,12.71297666]
[1753527741500,0.002,3762.8,3762.7,12.9989]
[1753527743258,0.002,3763.8,3762.9,0.55]
[1753527743459,0.4351,3763.8,3763.7,2.7897599]
[1753527743678,0.4351,3763.8,3763.7,5.2447599]
[1753527743960,0.9266,3763.8,3763.7,5.2447599]
[1753527747805,0.9266,3763.8,3763.7,2.5878]
[1753527748707,0.9266,3763.8,3763.7,0.1328]
[1753527748909,0.9266,3763.8,3763.7,2.5878]
[1753527749081,1.7086,3763.8,3763.6,2.455]
[1753527749405,0.9246,3763.7,3763.5,0.1328]
[1753527749775,3.44088931,3763.8,3763.5,0.1328]
[1753527750087,0.9246,3763.6,3763.5,0.1328]
[1753527751875,0.9246,3763.6,3762.6,4.58683397]
[1753527752078,0.782,3763.4,3763.2,0.1328]
[1753527752508,0.9246,3763.3,3763.2,0.1328]
[1753527753387,0.9246,3763.3,3763.0,0.1328]
[1753527753587,0.782,3763.4,3763.0,0.1328]
[1753527753795,0.9246,3763.2,3763.0,0.1328]
[1753527754208,2.65727605,3763.3,3763.0,0.1328]
[1753527754378,0.9246,3763.1,3763.0,0.1328]
[1753527755528,3.59100204,3763.1,3763.0,0.1328]
[1753527755696,0.9336185,3763.1,3763.0,0.1328]
[1753527761117,0.0090185,3763.1,3763.0,0.1328]
[1753527761312,0.9336185,3763.1,3763.0,0.1328]
[1753527770144,0.0090185,3763.1,3763.0,0.1328]
[1753527770628,0.4824185,3763.1,3763.0,0.1328]
[1753527770996,0.9324185,3763.1,3763.0,0.1328]
[1753527780124,0.0090185,3763.1,3763.0,0.1328]
[1753527781536,0.4824185,3763.1,3763.0,0.1328]
[1753527782547,0.0090185,3763.1,3763.0,2.79025415]
[1753527782748,0.0090185,3763.1,3763.0,6.55378812]
[1753527783357,0.002,3763.6,3763.5,2.6571011]
[1753527783557,0.002,3763.6,3763.5,3.45487211]
[1753527783742,0.002,3763.6,3763.5,3.58767211]
[1753527783947,0.01101886,3763.6,3763.5,3.58767211]
[1753527784155,0.01101886,3763.6,3763.5,3.5611011]
[1753527786257,0.01101886,3763.6,3763.5,3.76737211]
[1753527786648,0.01101886,3763.6,3763.5,3.5611011]
[1753527786848,0.93441886,3763.6,3763.5,6.0131011]
[1753527789195,0.93441886,3763.6,3762.9,0.001]
[1753527789375,2.6571828,3763.4,3763.1,0.1328]
[1753527789688,0.9234,3763.3,3763.1,0.1328]
[1753527789986,0.93241886,3763.3,3763.1,0.1328]
[1753527790221,1.7189,3763.2,3763.1,0.1328]
[1753527790579,4.37621292,3763.2,3763.1,0.1328]
[1753527790750,4.37621292,3763.2,3762.9,0.001]
[1753527790751,3.4169958,3763.0,3762.9,0.001]
[1753527790951,3.5497958,3763.0,3762.9,0.001]
[1753527791175,4.4731958,3763.0,3762.9,0.001]
[1753527793117,4.48221207,3763.0,3762.9,0.001]
[1753527793776,1.86071627,3763.0,3762.9,0.001]
[1753527793961,4.51817042,3763.0,3762.9,0.001]
[1753527794592,1.86071627,3763.0,3762.9,0.001]
[1753527794778,0.93241627,3763.0,3762.9,0.001]
[1753527796797,0.00901627,3763.0,3762.9,0.001]
[1753527796988,0.4734,3763.0,3762.9,0.1338]
[1753527797200,0.48241972,3763.0,3762.9,0.1338]
[1753527798608,0.48241972,3763.0,3762.9,2.79132478]
[1753527798998,0.00901972,3763.0,3762.9,2.79132478]
[1753527799204,0.00901972,3763.0,3762.9,0.1338]
[1753527799633,0.00901972,3763.0,3762.9,2.79132478]
[1753527800395,0.00901972,3763.0,3762.9,3.61742478]
[1753527800600,0.00901972,3763.0,3762.9,3.82370002]
[1753527801225,0.00901972,3763.0,3762.9,3.64400002]
[1753527801424,0.92461972,3763.0,3762.9,2.79132478]